bitfinex/quotes_SOLUSD_20241220
["timestamp","ask_amount","ask_price","bid_price","bid_amount"]
[1734720530363,0.6761625,190.65,190.64,39.62861859]
[1734720531787,0.6761625,190.65,190.64,26.42861859]
[1734720533797,0.6761625,190.65,190.6,26.42861859]
[1734720533966,0.6761625,190.65,190.64,26.42861859]
[1734720536377,0.6761625,190.65,190.64,63.40550259]
[1734720536588,0.6761625,190.65,190.64,71.53630259]
[1734720536787,0.6761625,190.65,190.64,383.53630259]
[1734720537625,6.25e-05,190.65,190.64,383.66179259]
[1734720537978,22.86685,190.7,190.69,23.776884]
[1734720538308,22.86685,190.7,190.69,26.42861859]
[1734720538611,22.84685,190.7,190.69,50.20550259]
[1734720538911,7.8651,190.81,190.69,50.20550259]
[1734720539114,7.8651,190.81,190.75,26.42861859]
[1734720539811,1.5674,190.81,190.75,26.42861859]
[1734720540385,26.42861859,190.83,190.76,26.42861859]
[1734720540694,27.10478109,190.84,190.76,26.42861859]
[1734720541089,17.17295693,190.84,190.77,16.49679443]
[1734720541283,16.49679443,190.81,190.74,16.49679443]
[1734720541520,16.49679443,190.79,190.72,16.49679443]
[1734720542302,16.49679443,190.79,190.7,16.49679443]
[1734720542303,18.10559443,190.79,190.7,16.49679443]
[1734720542517,16.49679443,190.77,190.7,16.49679443]
[1734720542691,16.49679443,190.76,190.69,16.49679443]
[1734720543493,16.49679443,190.77,190.7,16.49679443]
[1734720543820,16.49679443,190.77,190.69,16.49679443]
[1734720544398,16.49679443,190.78,190.7,16.49679443]
[1734720544896,1.6088,190.79,190.72,16.49679443]
[1734720545112,18.10559443,190.79,190.71,16.49679443]
[1734720546121,16.49679443,190.78,190.71,16.49679443]
[1734720546295,18.10559443,190.79,190.71,16.49679443]
[1734720546799,16.49679443,190.82,190.75,16.49679443]
[1734720547192,16.49679443,190.82,190.74,16.49679443]
[1734720547416,1.6485,190.83,190.73,20.0]
[1734720547417,16.49679443,190.8,190.73,20.0]
[1734720547600,16.49679443,190.8,190.73,36.49679443]
[1734720547802,16.49679443,190.8,190.73,20.0]
[1734720548312,16.49679443,190.79,190.71,16.49679443]
[1734720548515,16.49679443,190.78,190.7,36.49679443]
[1734720548720,16.49679443,190.78,190.71,16.49679443]
[1734720549032,16.49679443,190.79,190.72,16.49679443]
[1734720550625,16.49679443,190.78,190.71,16.49679443]
[1734720550830,16.49679443,190.78,190.67,26.3115]
[1734720550831,16.49679443,190.74,190.62,13.98642578]
[1734720550998,16.49679443,190.72,190.64,16.49679443]
[1734720551320,16.49679443,190.73,190.65,16.49679443]
[1734720551535,16.49679443,190.73,190.66,16.49679443]
[1734720551715,16.49679443,190.74,190.67,16.49679443]
[1734720552038,16.49679443,190.77,190.69,16.49679443]
[1734720552327,16.49679443,190.77,190.7,16.49679443]
[1734720552533,16.49679443,190.78,190.71,16.49679443]
[1734720552909,16.49679443,190.78,190.7,16.49679443]
[1734720553111,16.49679443,190.78,190.71,16.49679443]
[1734720553301,16.49679443,190.78,190.7,16.49679443]
[1734720553838,16.49679443,190.77,190.7,16.49679443]
[1734720554124,16.49679443,190.78,190.7,16.49679443]
[1734720554631,16.49679443,190.77,190.7,16.49679443]
[1734720554802,6.4457,190.81,190.69,20.0]
[1734720554803,16.49679443,190.76,190.69,20.0]
[1734720555002,16.49679443,190.75,190.67,16.49679443]
[1734720555221,16.49679443,190.74,190.67,16.49679443]
[1734720555725,16.49679443,190.73,190.66,16.49679443]
[1734720555896,16.49679443,190.71,190.64,16.49679443]
[1734720557207,6.1173,190.87,190.7,23.776884]
[1734720557403,16.49679443,190.85,190.75,16.49679443]
[1734720557719,16.49679443,190.83,190.75,16.49679443]
[1734720559602,16.49679443,190.81,190.72,13.2]
[1734720559905,16.49679443,190.79,190.69,24.56999443]
[1734720562037,16.49679443,190.79,190.71,16.49679443]
[1734720562215,16.49679443,190.81,190.73,16.49679443]
[1734720564747,16.49679443,190.79,190.71,16.49679443]
[1734720565710,16.49679443,190.77,190.69,18.10029443]
[1734720566207,0.6761625,190.84,190.73,16.49679443]
[1734720566412,16.49679443,190.83,190.77,16.49679443]
[1734720566630,0.6761625,190.84,190.77,16.49679443]
[1734720567621,16.49679443,190.83,190.75,16.49679443]
[1734720567821,16.49679443,190.81,190.73,16.49679443]
[1734720569053,26.40451975,190.8,190.72,26.40451975]
[1734720569647,26.40451975,190.78,190.72,26.40451975]
[1734720569829,26.40451975,190.78,190.7,32.87421975]
[1734720571375,26.40451975,190.75,190.68,26.40451975]
[1734720572056,26.40451975,190.76,190.68,26.40451975]
[1734720572436,26.40451975,190.79,190.71,26.40451975]
[1734720573963,26.32774601,190.79,190.71,26.40451975]
[1734720574166,26.40451975,190.77,190.69,26.40451975]
[1734720575745,1.543,190.83,190.65,34.2018]
[1734720575746,26.40451975,190.75,190.67,26.40451975]
[1734720576063,26.40451975,190.73,190.65,27.93551975]
[1734720576245,26.40451975,190.71,190.63,26.40451975]
[1734720576572,26.40451975,190.76,190.69,26.40451975]
[1734720577067,26.40451975,190.77,190.69,26.40451975]
[1734720583068,26.40451975,190.77,190.69,226.40451975]
[1734720584968,26.40451975,190.79,190.71,26.40451975]
[1734720585971,26.40451975,190.81,190.73,26.40451975]
[1734720586394,7.9202,190.83,190.75,26.40451975]
[1734720586395,26.40451975,190.83,190.75,26.40451975]
[1734720586560,13.0994,190.85,190.77,26.40451975]
[1734720586561,26.40451975,190.85,190.77,26.40451975]
[1734720587348,26.40451975,190.87,190.79,26.40451975]
[1734720587950,26.08068225,190.87,190.79,26.40451975]
[1734720588649,26.40451975,190.86,190.78,26.40451975]
[1734720589273,26.40451975,190.85,190.77,39.60451975]
[1734720589453,26.40451975,190.84,190.77,39.60451975]
[1734720589775,26.40451975,190.84,190.81,0.08399839]
[1734720590478,46.40451975,190.85,190.81,0.08399839]
[1734720590660,26.40451975,190.86,190.81,0.08399839]
[1734720591183,16.49223955,190.87,190.81,0.08399839]
[1734720591361,16.49223955,190.86,190.81,0.08399839]
[1734720591563,16.49223955,190.87,190.81,0.08399839]
[1734720592078,16.49223955,190.86,190.81,0.08399839]
[1734720592957,16.49223955,190.87,190.81,0.08399839]
[1734720596254,16.49223955,190.9,190.82,16.49223955]
[1734720596472,7.6999,190.93,190.84,16.49223955]
[1734720596691,16.49223955,190.9,190.83,16.49223955]
[1734720596976,16.49223955,190.89,190.82,16.49223955]
[1734720597152,16.42918093,190.89,190.82,16.49223955]
[1734720597353,16.49223955,190.87,190.81,0.08399839]
[1734720597565,16.49223955,190.86,190.81,0.08399839]
[1734720600701,16.49223955,190.87,190.81,0.08399839]
[1734720601277,16.49223955,190.89,190.81,16.57623794]
[1734720601498,16.49223955,190.87,190.81,0.08399839]
[1734720601700,16.49223955,190.84,190.81,0.08399839]
[1734720602069,16.49223955,190.83,190.81,0.08399839]
[1734720602396,16.49223955,190.85,190.81,0.08399839]
[1734720603677,16.49223955,190.83,190.81,0.08399839]
[1734720603872,43.776884,190.86,190.85,183.50776045]
[1734720604896,26.1831,190.97,190.85,183.50776045]
[1734720605090,16.49223955,190.86,190.85,183.50776045]
[1734720606901,16.49223955,190.89,190.85,183.50776045]
[1734720607803,16.49223955,190.86,190.85,183.50776045]
[1734720608208,40.26912355,190.86,190.85,183.50776045]
[1734720613488,40.26912355,190.86,190.85,180.69176045]
[1734720613689,40.26912355,190.86,190.85,175.05976045]
[1734720614629,40.26912355,190.86,190.85,176.05976045]
[1734720615306,16.49223955,190.86,190.85,176.05976045]
[1734720616495,40.26912355,190.86,190.85,176.05976045]
[1734720621735,40.26912355,190.86,190.85,171.64086045]
[1734720621930,40.26912355,190.86,190.85,52.96472403]
[1734720622110,40.26912355,190.86,190.85,46.21112403]
[1734720622524,40.26912355,190.86,190.85,41.14922403]
[1734720623833,40.26912355,190.86,190.85,29.35802403]
[1734720624002,40.26912355,190.86,190.85,20.90342403]
[1734720624203,40.26912355,190.86,190.85,11.35512403]
[1734720624406,40.26912355,190.86,190.85,0.02292403]
[1734720624627,40.26912355,190.86,190.85,2.403e-05]
[1734720624927,20.0,190.82,190.74,1.5664]
[1734720625106,16.49223955,190.79,190.74,1.5664]
[1734720626116,16.49223955,190.77,190.74,1.5664]
[1734720626324,16.49223955,190.75,190.66,6.5243]
[1734720626538,16.49223955,190.68,190.66,6.5243]
[1734720627129,16.49223955,190.68,190.64,1.6168]
[1734720628541,13.1046,190.78,190.67,20.0]
[1734720628718,16.49223955,190.75,190.68,6.316]
[1734720629434,16.49223955,190.77,190.69,16.49223955]
[1734720630021,16.49223955,190.78,190.71,16.49223955]
[1734720630240,16.49223955,190.78,190.72,1.5741]
[1734720634417,16.49223955,190.8,190.73,16.49223955]
[1734720636342,16.49223955,190.81,190.72,1.5741]
[1734720636548,16.49223955,190.81,190.73,16.49223955]
[1734720637057,16.49223955,190.79,190.72,1.5741]
[1734720637615,16.49223955,190.77,190.72,1.5741]
[1734720637821,16.49223955,190.75,190.68,6.316]
[1734720640649,20.0,190.8,190.69,16.49223955]
[1734720640835,16.49223955,190.78,190.71,16.49223955]
[1734720641353,16.49223955,190.76,190.69,16.49223955]
[1734720641852,13.1006,190.83,190.68,6.316]
[1734720641853,16.49223955,190.74,190.68,6.316]
[1734720643658,16.49223955,190.72,190.67,1.6118]
[1734720644140,16.49223955,190.68,190.62,1.6118]
[1734720644326,16.49223955,190.66,190.62,1.6118]
[1734720644533,16.49223955,190.64,190.58,6.136]
[1734720644944,16.49223955,190.66,190.58,6.136]
[1734720645330,16.49223955,190.6,190.57,1.6118]
[1734720645667,16.49223955,190.6,190.54,6.0207]
[1734720646326,16.49223955,190.64,190.57,16.49223955]
[1734720646533,1.6459,190.71,190.6,16.49223955]
[1734720646534,16.49223955,190.68,190.6,16.49223955]
[1734720647757,16.49223955,190.64,190.56,16.49223955]
[1734720648759,16.49223955,190.66,190.58,16.49223955]
[1734720649057,16.49223955,190.7,190.62,16.49223955]
[1734720649269,16.49223955,190.7,190.63,1.6609]
[1734720649646,16.49223955,190.72,190.64,22.99553955]
[1734720650671,16.49223955,190.7,190.63,1.6609]
[1734720651283,16.49223955,190.68,190.63,1.6609]
[1734720651589,16.49223955,190.68,190.6,22.56043955]
[1734720652950,16.49223955,190.66,190.6,6.0682]
[1734720653271,16.49223955,190.64,190.56,22.91463955]
[1734720653577,16.49223955,190.62,190.56,6.4224]
[1734720654679,16.49223955,190.66,190.58,16.49223955]
[1734720654883,16.49223955,190.66,190.56,22.91463955]
[1734720655049,16.49223955,190.64,190.56,22.91463955]
[1734720655675,16.49223955,190.62,190.56,6.4224]
[1734720656963,16.49223955,190.64,190.56,6.4224]
[1734720657667,16.49223955,190.64,190.56,22.91463955]
[1734720657871,40.26912355,190.66,190.56,22.91463955]
[1734720658464,16.49223955,190.64,190.56,22.91463955]
[1734720658662,16.49223955,190.62,190.56,6.4224]
[1734720658862,16.49223955,190.6,190.54,1.5926]
[1734720659464,16.49223955,190.56,190.49,1.6008]
[1734720659783,16.49223955,190.6,190.52,16.49223955]
[1734720659986,16.49223955,190.62,190.54,16.49223955]
[1734720662053,16.49223955,190.6,190.52,16.49223955]
[1734720662555,16.49223955,190.62,190.54,16.49223955]
[1734720663453,16.49223955,190.6,190.52,16.49223955]
[1734720663985,16.49223955,190.58,190.5,36.49223955]
[1734720664373,16.49223955,190.6,190.5,36.49223955]
[1734720664679,16.49223955,190.58,190.5,16.49223955]
[1734720664980,16.49223955,190.56,190.49,1.6008]
[1734720666184,16.49223955,190.54,190.49,1.6008]
[1734720666873,16.49223955,190.56,190.5,16.49223955]
[1734720667474,16.49223955,190.58,190.5,16.49223955]
[1734720668184,16.49223955,190.56,190.49,1.6008]
[1734720668372,16.49223955,190.54,190.49,1.6008]
[1734720668879,16.49223955,190.54,190.47,6.5183]
[1734720669063,16.49223955,190.52,190.44,18.05713955]
[1734720670071,16.49223955,190.48,190.42,6.5075]
[1734720670272,16.49223955,190.48,190.4,16.49223955]
[1734720670477,16.49223955,190.44,190.36,17.16840205]
[1734720670789,16.49223955,190.42,190.36,0.6761625]
[1734720670971,16.49223955,190.4,190.36,0.6761625]
[1734720671168,6.498,190.46,190.36,0.6761625]
[1734720671169,16.49223955,190.38,190.36,0.6761625]
[1734720671671,23.776884,190.37,190.36,0.6761625]
[1734720672070,9.950072,190.46,190.36,0.6761625]
[1734720672272,23.776884,190.42,190.36,0.6761625]
[1734720672563,16.49223955,190.4,190.36,0.6761625]
[1734720672978,26.52422537,190.38,190.36,0.6761625]
[1734720673396,26.52422537,190.4,190.36,0.6761625]
[1734720673561,50.30110937,190.42,190.36,0.6761625]
[1734720674068,26.52422537,190.44,190.36,27.20038787]
[1734720674276,6.498,190.46,190.36,27.20038787]
[1734720674277,26.52422537,190.46,190.38,26.52422537]
[1734720674469,26.52422537,190.48,190.4,26.52422537]
[1734720675996,26.52422537,190.46,190.38,26.52422537]
[1734720676512,23.776884,190.47,190.36,0.6761625]
[1734720676513,26.52422537,190.42,190.36,0.6761625]
[1734720677183,26.52422537,190.4,190.36,0.6761625]
[1734720677690,26.52422537,190.42,190.36,0.6761625]
[1734720679390,26.52422537,190.46,190.36,27.20038787]
[1734720679612,26.52422537,190.48,190.4,26.52422537]
[1734720679792,26.52422537,190.46,190.38,26.52422537]
[1734720680168,26.52422537,190.46,190.36,27.20038787]
[1734720680574,26.52422537,190.44,190.36,27.20038787]
[1734720681799,26.52422537,190.44,190.36,0.6761625]
[1734720682376,26.52422537,190.46,190.38,26.52422537]
[1734720682577,26.52422537,190.48,190.4,26.52422537]
[1734720685205,26.52422537,190.5,190.42,26.52422537]
[1734720685908,26.52422537,190.48,190.4,26.52422537]
[1734720686280,26.52422537,190.5,190.42,26.52422537]
[1734720686495,26.52422537,190.52,190.44,26.52422537]
[1734720687303,26.52422537,190.54,190.46,26.52422537]
[1734720687481,26.52422537,190.56,190.48,26.52422537]
[1734720687686,26.52422537,190.54,190.46,26.52422537]
[1734720687903,26.52422537,190.52,190.44,26.52422537]
[1734720689501,26.52422537,190.5,190.42,26.52422537]
[1734720689713,26.52422537,190.48,190.4,26.52422537]
[1734720691527,23.776884,190.51,190.39,8.2124]
[1734720691528,26.52422537,190.5,190.42,26.52422537]
[1734720693512,26.52422537,190.5,190.39,1.5619]
[1734720693513,26.52422537,190.46,190.39,1.5619]
[1734720693714,26.52422537,190.44,190.4,0.08399839]
[1734720694602,23.776884,190.49,190.39,1.5619]
[1734720694802,26.52422537,190.46,190.39,1.5619]
[1734720695617,26.52422537,190.48,190.4,26.52422537]
[1734720697625,26.52422537,190.46,190.39,1.5619]
[1734720698133,26.52422537,190.44,190.36,27.20038787]
[1734720698302,26.52422537,190.42,190.36,0.6761625]
[1734720699058,26.52422537,190.49,190.41,26.52422537]
[1734720699198,26.52422537,190.51,190.43,26.52422537]
[1734720700132,26.52422537,190.53,190.45,26.52422537]
[1734720700331,26.52422537,190.53,190.45,28.08132537]
[1734720700633,26.52422537,190.54,190.47,26.52422537]
[1734720700803,26.52422537,190.56,190.47,26.52422537]
[1734720701330,13.118,190.58,190.45,1.5571]
[1734720701331,26.52422537,190.52,190.45,1.5571]
[1734720702128,26.52422537,190.52,190.44,6.25]
[1734720702334,26.52422537,190.48,190.4,1.5571]
[1734720703629,26.52422537,190.48,190.41,26.52422537]
[1734720704517,26.52422537,190.48,190.4,1.5571]
[1734720705505,26.52422537,190.48,190.41,26.52422537]
[1734720707804,26.52422537,190.48,190.4,1.5571]
[1734720710431,26.52422537,190.48,190.41,26.52422537]
[1734720710733,26.52422537,190.52,190.43,26.52422537]
[1734720714337,26.52422537,190.48,190.41,26.52422537]
[1734720714638,26.52422537,190.5,190.41,26.52422537]
[1734720714828,26.52422537,190.5,190.43,26.52422537]
[1734720716736,26.52422537,190.5,190.41,26.52422537]
[1734720717517,26.52422537,190.48,190.4,1.5571]
[1734720718221,26.52422537,190.5,190.41,26.52422537]
[1734720718419,26.52422537,190.5,190.43,26.52422537]
[1734720719020,26.52422537,190.52,190.43,26.52422537]
[1734720720242,26.52422537,190.48,190.41,26.52422537]
[1734720720544,26.52422537,190.46,190.4,1.5571]
[1734720720749,26.52422537,190.48,190.4,1.5571]
[1734720721931,26.52422537,190.46,190.37,26.52422537]
[1734720722253,26.52422537,190.42,190.36,0.6761625]
[1734720722421,26.52422537,190.4,190.36,0.6761625]
[1734720722856,26.52422537,190.38,190.36,0.6761625]
[1734720723145,26.52422537,190.4,190.36,0.6761625]
[1734720723736,26.52422537,190.38,190.36,0.6761625]
[1734720724548,23.776884,190.37,190.36,0.6761625]
[1734720725249,26.52422537,190.38,190.36,0.6761625]
[1734720725447,26.52422537,190.4,190.36,0.6761625]
[1734720726651,26.52422537,190.38,190.36,0.6761625]
[1734720727356,26.52422537,190.38,190.36,0.4256828]
[1734720727546,23.776884,190.37,190.36,0.4256828]
[1734720729096,25.434284,190.37,190.36,0.4256828]
[1734720729348,25.434284,190.37,190.36,8.28e-05]
[1734720729740,26.52422537,190.28,190.21,1.5514]
[1734720730858,26.52422537,190.28,190.21,28.07562537]
[1734720732661,26.52422537,190.3,190.21,28.07562537]
[1734720734073,26.52422537,190.32,190.25,26.52422537]
[1734720734842,26.52422537,190.34,190.25,26.52422537]
[1734720735656,26.52422537,190.32,190.23,26.52422537]
[1734720735963,26.52422537,190.3,190.23,26.52422537]
[1734720736165,26.52422537,190.32,190.25,26.52422537]
[1734720736836,26.52422537,190.34,190.27,26.52422537]
[1734720739673,25.434284,190.37,190.21,14.7514]
[1734720739674,26.52422537,190.38,190.29,26.52422537]
[1734720739876,26.52422537,190.38,190.31,26.52422537]
[1734720740242,26.52422537,190.36,190.29,26.52422537]
[1734720740452,26.52422537,190.38,190.29,26.52422537]
[1734720740770,26.52422537,190.38,190.3,1.6553]
[1734720741076,16.57743166,190.38,190.3,18.23273166]
[1734720741951,16.57743166,190.36,190.3,1.6553]
[1734720742275,16.51423066,190.36,190.3,1.6553]
[1734720742575,16.51423066,190.36,190.3,18.23273166]
[1734720742775,16.57743166,190.4,190.32,16.57743166]
[1734720742997,16.57743166,190.42,190.34,16.57743166]
[1734720743192,16.57743166,190.44,190.36,16.57743166]
[1734720743346,16.57743166,190.46,190.38,16.57743166]
[1734720745067,26.50416046,190.45,190.37,26.50416046]
[1734720745287,26.50416046,190.46,190.39,26.50416046]
[1734720745471,26.50416046,190.47,190.39,26.50416046]
[1734720745975,26.50416046,190.46,190.39,26.50416046]
[1734720746882,26.50416046,190.48,190.41,26.50416046]
[1734720747058,26.50416046,190.51,190.43,26.50416046]
[1734720747376,26.50416046,190.56,190.48,26.50416046]
[1734720747747,26.50416046,190.55,190.47,26.50416046]
[1734720747953,26.50416046,190.55,190.48,26.50416046]
[1734720748376,26.50416046,190.54,190.46,26.50416046]
[1734720748685,26.50416046,190.54,190.47,26.50416046]
[1734720748886,26.50416046,190.55,190.47,26.50416046]
[1734720749096,26.50416046,190.57,190.5,26.50416046]
[1734720749390,26.50416046,190.58,190.5,26.50416046]
[1734720749682,26.50416046,190.58,190.51,26.50416046]
[1734720749881,26.50416046,190.6,190.52,26.50416046]
[1734720750087,26.50416046,190.62,190.55,26.50416046]
[1734720750252,26.50416046,190.63,190.56,26.50416046]
[1734720750453,26.50416046,190.64,190.56,26.50416046]
[1734720751381,26.50416046,190.63,190.56,26.50416046]
[1734720751609,26.50416046,190.65,190.57,26.50416046]
[1734720751796,26.50416046,190.64,190.57,26.50416046]
[1734720752281,26.50416046,190.69,190.62,26.50416046]
[1734720752588,26.50416046,190.7,190.63,26.50416046]
[1734720753354,26.50416046,190.68,190.6,26.50416046]
[1734720753585,26.50416046,190.68,190.56,6.6353]
[1734720753586,26.50416046,190.67,190.59,26.50416046]
[1734720753893,26.50416046,190.64,190.56,33.13946046]
[1734720754199,26.50416046,190.63,190.56,6.6353]
[1734720754658,26.50416046,190.63,190.55,28.15406046]
[1734720754858,26.50416046,190.61,190.53,26.50416046]
[1734720755170,26.50416046,190.59,190.51,34.69566046]
[1734720756090,26.50416046,190.57,190.51,1.5562]
[1734720756282,26.50416046,190.57,190.49,26.50416046]
[1734720756680,26.50416046,190.53,190.47,1.5562]
[1734720757403,26.50416046,190.51,190.43,26.50416046]
[1734720759995,26.50416046,190.49,190.42,1.5562]
[1734720760185,26.50416046,190.51,190.43,26.50416046]
[1734720760379,26.50416046,190.53,190.45,26.50416046]
[1734720760585,26.50416046,190.55,190.45,26.50416046]
[1734720762079,26.50416046,190.53,190.45,26.50416046]
[1734720764203,26.50416046,190.55,190.47,26.50416046]
[1734720765401,26.50416046,190.53,190.45,26.50416046]
[1734720765800,26.50416046,190.49,190.42,1.5562]
[1734720766102,26.50416046,190.51,190.42,1.5562]
[1734720766280,26.50416046,190.53,190.45,26.50416046]
[1734720766481,26.50416046,190.57,190.49,26.50416046]
[1734720767097,26.50416046,190.57,190.47,26.50416046]
[1734720767402,26.50416046,190.55,190.47,26.50416046]
[1734720770497,26.50416046,190.55,190.49,26.50416046]
[1734720771891,26.50416046,190.57,190.49,26.50416046]
[1734720773008,16.54542737,190.57,190.48,16.54542737]
[1734720773809,16.54542737,190.55,190.48,16.54542737]
[1734720774143,16.54542737,190.49,190.42,18.10162737]
[1734720774310,16.54542737,190.49,190.42,1.5562]
[1734720774896,16.54542737,190.47,190.4,16.54542737]
[1734720775204,26.49982966,190.47,190.39,26.49982966]
[1734720776207,26.49982966,190.51,190.43,26.49982966]
[1734720780503,26.49982966,190.53,190.45,26.49982966]
[1734720780706,26.49982966,190.55,190.47,26.49982966]
[1734720782414,26.49982966,190.57,190.49,26.49982966]
[1734720783317,26.49982966,190.59,190.53,26.49982966]
[1734720783503,26.49982966,190.61,190.53,26.49982966]
[1734720784123,26.49982966,190.63,190.55,26.49982966]
[1734720784825,26.49982966,190.61,190.55,26.49982966]
[1734720786013,26.49982966,190.63,190.55,26.49982966]
[1734720786525,26.49982966,190.65,190.57,26.49982966]
[1734720787020,26.49982966,190.69,190.61,26.49982966]
[1734720791012,26.49982966,190.67,190.59,26.49982966]
[1734720791707,26.49982966,190.65,190.57,26.49982966]
[1734720791906,26.49982966,190.63,190.56,6.5357]
[1734720792296,26.49982966,190.69,190.61,26.49982966]
[1734720792958,26.49982966,190.67,190.59,26.49982966]
[1734720793115,26.49982966,190.65,190.57,26.49982966]
[1734720794342,26.49982966,190.67,190.59,26.49982966]
[1734720795132,16.52507181,190.68,190.6,16.52507181]
[1734720798220,16.52507181,190.7,190.62,16.52507181]
[1734720799233,1.5573,190.76,190.66,16.52507181]
[1734720799436,16.52507181,190.75,190.66,16.52507181]
[1734720799643,16.52507181,190.73,190.64,18.08917181]
[1734720799945,16.52507181,190.71,190.64,18.08917181]
[1734720800842,16.52507181,190.73,190.66,16.52507181]
[1734720801738,16.52507181,190.73,190.64,18.08917181]
[1734720802044,16.52507181,190.75,190.68,16.52507181]
[1734720802263,16.52507181,190.77,190.7,16.52507181]
[1734720803750,16.52507181,190.75,190.68,16.52507181]
[1734720804251,16.52507181,190.77,190.68,16.52507181]
[1734720804549,16.52507181,190.77,190.7,16.52507181]
[1734720805147,16.52507181,190.77,190.68,16.52507181]
[1734720806749,16.52507181,190.77,190.65,19.3928]
[1734720806750,16.52507181,190.79,190.7,16.52507181]
[1734720807044,16.52507181,190.81,190.72,16.52507181]
[1734720807440,16.52507181,190.83,190.74,16.52507181]
[1734720809042,16.52507181,190.82,190.7,29.63417181]
[1734720809238,16.52507181,190.8,190.72,16.52507181]
[1734720814035,16.52507181,190.82,190.74,16.52507181]
[1734720814240,17.20123431,190.84,190.74,16.52507181]
[1734720814848,17.20123431,190.84,190.76,16.52507181]
[1734720815043,17.20123431,190.84,190.73,1.6017]
[1734720815044,16.52507181,190.82,190.74,16.52507181]
[1734720815353,16.52507181,190.8,190.73,1.6017]
[1734720816064,16.52507181,190.8,190.65,8.42004106]
[1734720816065,16.52507181,190.78,190.7,16.52507181]
[1734720816266,16.52507181,190.76,190.68,18.04297181]
[1734720816559,16.52507181,190.74,190.68,1.5179]
[1734720817053,16.52507181,190.74,190.66,16.52507181]
[1734720817443,6.6437,190.8,190.68,16.52507181]
[1734720817657,20.0,190.77,190.7,16.52507181]
[1734720818551,16.52507181,190.81,190.72,16.52507181]
[1734720819857,0.6761625,190.84,190.77,16.52507181]
[1734720820059,0.6761625,190.84,190.79,16.52507181]
[1734720820446,0.6761625,190.84,190.81,16.52507181]
[1734720821733,0.6761625,190.84,190.79,16.52507181]
[1734720824065,0.6761625,190.84,190.81,16.52507181]
[1734720824437,0.6761625,190.84,190.83,16.52507181]
[1734720824933,0.6761625,190.84,190.83,23.00857181]
[1734720829158,16.52507181,190.99,190.86,20.0]
[1734720829351,16.52507181,190.99,190.91,16.52507181]
[1734720832856,36.52507181,190.97,190.91,16.52507181]
[1734720833073,6.6309,191.0,190.86,20.0]
[1734720833074,6.6309,191.0,190.93,16.52507181]
[1734720833586,18.14597181,191.01,190.93,16.52507181]
[1734720834248,18.14597181,191.01,190.91,16.52507181]
[1734720835583,16.52507181,190.99,190.91,16.52507181]
[1734720837285,18.14597181,191.01,190.93,16.52507181]
[1734720839064,16.52507181,190.97,190.89,16.52507181]
[1734720840348,23.776884,190.98,190.89,16.52507181]
[1734720841044,16.52507181,190.97,190.89,16.52507181]
[1734720841256,16.52507181,190.95,190.87,16.52507181]
[1734720841487,16.52507181,190.93,190.85,16.52507181]
[1734720842751,20.0,190.88,190.81,16.52507181]
[1734720843077,16.52507181,190.91,190.83,16.52507181]
[1734720843285,20.0,190.88,190.83,16.52507181]
[1734720844774,20.0,190.88,190.81,16.52507181]
[1734720844985,16.52507181,190.89,190.81,16.52507181]
[1734720846979,20.0,190.9,190.81,16.52507181]
[1734720847180,20.0,190.88,190.81,16.52507181]
[1734720847359,20.0,190.9,190.81,16.52507181]
[1734720847562,16.52507181,190.91,190.83,16.52507181]
[1734720847755,6.588,191.01,190.87,16.52507181]
[1734720847955,16.52507181,190.96,190.89,16.52507181]
[1734720848159,16.52507181,190.98,190.89,16.52507181]
[1734720848469,16.52507181,190.96,190.88,16.52507181]
[1734720848968,16.52507181,190.98,190.9,16.52507181]
[1734720849553,16.52507181,190.96,190.88,16.52507181]
[1734720849749,16.52507181,190.94,190.86,18.06027181]
[1734720851252,16.52507181,190.96,190.88,16.52507181]
[1734720851458,16.52507181,190.98,190.9,16.52507181]
[1734720853082,16.52507181,191.0,190.92,16.52507181]
[1734720854596,16.52507181,190.98,190.9,16.52507181]
[1734720854778,16.52507181,190.98,190.88,16.52507181]
[1734720854959,16.52507181,190.98,190.9,16.52507181]
[1734720859680,20.0,190.97,190.9,16.52507181]
[1734720860972,16.52507181,191.0,190.92,16.52507181]
[1734720862267,16.52507181,191.02,190.94,16.52507181]
[1734720862481,0.6761625,191.03,190.98,16.52507181]
[1734720863179,0.6761625,191.03,191.0,16.52507181]
[1734720864219,0.6761625,191.03,190.95,0.78528486]
[1734720864392,0.6761625,191.03,190.99,16.52507181]
[1734720867585,0.6761625,191.03,190.95,16.52507181]
[1734720868398,0.6761625,191.03,190.92,1.6077]
[1734720868587,20.6761625,191.03,190.97,16.52507181]
[1734720869986,0.6761625,191.03,190.95,16.52507181]
[1734720870189,16.52507181,191.02,190.95,16.52507181]
[1734720870480,0.6761625,191.03,191.01,16.52507181]
[1734720872999,0.6761625,191.03,190.99,16.52507181]
[1734720873209,0.6761625,191.03,190.97,24.27257181]
[1734720874687,0.6761625,191.03,190.99,16.52507181]
[1734720876108,0.6761625,191.03,191.01,16.52507181]
[1734720878286,0.6761625,191.03,190.96,13.0917]